bitfinex/quotes_ETHUSD_20250508
["timestamp","ask_amount","ask_price","bid_price","bid_amount"]
[1746704593940,10.23795826,1953.6,1953.3,3.0]
[1746704594687,5.11895915,1953.6,1953.3,3.0]
[1746704595175,5.11902753,1953.5,1953.3,3.0]
[1746704596171,5.11902753,1953.5,1953.4,0.26439276]
[1746704596374,5.11891745,1953.6,1953.3,3.0]
[1746704596571,5.11891745,1953.6,1953.4,0.26439276]
[1746704596776,5.11891745,1953.6,1953.3,3.0]
[1746704597070,5.11891745,1953.6,1953.4,0.26439276]
[1746704597367,5.11891745,1953.6,1953.3,3.0]
[1746704597614,5.11891745,1953.6,1953.4,0.2642616]
[1746704597740,5.11863191,1953.7,1953.4,0.2642616]
[1746704597942,5.87355834,1953.8,1953.5,0.26384226]
[1746704598576,5.11849719,1953.7,1953.5,0.26384226]
[1746704599078,5.11875511,1953.6,1953.5,0.26384226]
[1746704599462,5.11875511,1953.6,1953.3,3.0]
[1746704599658,5.11875511,1953.6,1953.5,0.26384226]
[1746704600757,5.11875511,1953.6,1953.3,3.0]
[1746704600976,5.11875511,1953.6,1953.4,0.2642616]
[1746704601175,5.11875511,1953.6,1953.3,3.0]
[1746704601343,5.11875511,1953.6,1953.4,0.2642616]
[1746704601546,5.11875511,1953.6,1953.3,3.0]
[1746704601753,5.11875511,1953.6,1953.3,4.57275913]
[1746704601958,5.11901714,1953.5,1953.4,0.2642616]
[1746704602239,10.23827631,1953.5,1953.2,3.0]
[1746704602475,5.92741714,1953.5,1953.4,0.26508414]
[1746704602673,11.04667631,1953.5,1953.3,0.26550356]
[1746704602977,5.92741714,1953.5,1953.4,0.26508414]
[1746704603174,5.92741714,1953.5,1953.2,3.0]
[1746704603376,5.11933087,1953.4,1953.2,3.0]
[1746704603567,5.11933087,1953.4,1953.3,0.26550356]
[1746704604988,5.11961487,1953.3,1953.0,8.12030777]
[1746704605149,5.12001683,1953.2,1953.0,5.77176919]
[1746704605348,5.92752159,1953.5,1953.0,3.0]
[1746704605349,5.12006553,1953.1,1953.0,3.0]
[1746704605548,5.11969711,1953.3,1953.0,3.0]
[1746704606280,5.1203277,1953.0,1952.8,3.38815421]
[1746704606449,5.1203277,1953.0,1952.5,0.8056]
[1746704606650,5.12099513,1952.8,1952.5,0.8056]
[1746704606849,5.12099513,1952.8,1952.5,4.57138444]
[1746704607077,5.12099513,1952.8,1952.5,1.57138444]
[1746704607387,5.12099513,1952.8,1952.5,9.69301799]
[1746704607552,5.12076063,1952.9,1952.5,9.69301799]
[1746704607746,5.12076063,1952.9,1952.6,0.9693018]
[1746704608065,5.1207678,1952.9,1952.6,0.9693018]
[1746704608268,5.12088488,1952.8,1952.5,4.57138444]
[1746704608758,5.12088488,1952.8,1952.5,3.76578444]
[1746704608949,5.12088488,1952.8,1952.5,4.15324383]
[1746704609779,5.12088488,1952.8,1952.5,9.27486018]
[1746704610288,5.12088488,1952.8,1952.5,4.15324383]
[1746704610782,5.12076865,1952.9,1952.5,9.27486949]
[1746704611279,5.12076865,1952.9,1952.6,0.2702748]
[1746704611582,5.12076865,1952.9,1952.6,2.00063925]
[1746704612381,5.12076865,1952.9,1952.6,0.2702748]
[1746704613192,5.12111435,1952.7,1952.6,0.2702748]
[1746704613985,5.88511435,1952.7,1952.6,0.2702748]
[1746704614376,5.12146295,1952.6,1952.4,1.73036445]
[1746704615069,10.24307466,1952.6,1952.4,1.73036445]
[1746704615269,5.12146295,1952.6,1952.4,1.73036445]
[1746704615985,5.12150252,1952.6,1952.4,1.73036445]
[1746704616784,5.12150252,1952.6,1952.4,2.10529528]
[1746704618491,5.12163892,1952.5,1952.4,2.10529528]
[1746704618881,10.24349478,1952.5,1952.2,1.73036445]
[1746704619487,5.12163892,1952.5,1952.2,2.49456149]
[1746704619984,5.12167444,1952.5,1952.2,7.61686451]
[1746704620184,5.12167444,1952.5,1952.2,7.6169549]
[1746704620397,5.12167444,1952.5,1952.2,2.49456149]
[1746704621590,5.12167444,1952.5,1952.2,2.87206665]
[1746704622555,10.24352321,1952.5,1952.2,2.49456149]
[1746704622785,0.764,1952.7,1952.0,0.8314]
[1746704623133,5.90231023,1952.3,1951.9,6.08]
[1746704623300,5.90231023,1952.3,1951.9,5.12320165]
[1746704623487,0.78,1952.3,1952.0,1.73036445]
[1746704623688,5.90234001,1952.3,1952.0,1.73036445]
[1746704624294,5.12244963,1952.2,1952.0,1.73036445]
[1746704626238,5.12244963,1952.2,1952.1,0.27420494]
[1746704626462,5.12221774,1952.3,1952.1,0.27420494]
[1746704627340,5.12242598,1952.2,1952.1,0.27420494]
[1746704628808,5.12219381,1952.3,1952.1,1.10080494]
[1746704629041,5.12242598,1952.2,1952.1,0.27420494]
[1746704630961,0.7773,1952.5,1952.1,5.39673224]
[1746704631159,5.12150829,1952.6,1952.4,1.73036445]
[1746704631460,10.24311996,1952.6,1952.4,1.73036445]
[1746704631652,5.12150829,1952.6,1952.5,0.27104291]
[1746704636876,5.1221636,1952.3,1952.2,1.73036445]
[1746704637072,5.1221636,1952.3,1952.2,0.27284428]
[1746704637374,5.12253391,1952.2,1952.0,2.51446445]
[1746704637676,5.12268838,1952.1,1952.0,1.73036445]
[1746704640797,5.12260105,1952.2,1952.0,1.73036445]
[1746704641392,5.12260105,1952.2,1952.1,0.27260567]
[1746704646860,5.12228657,1952.3,1952.1,0.27260567]
[1746704647193,5.1221636,1952.3,1952.1,0.27260567]
[1746704647560,5.12242598,1952.2,1952.1,0.27260567]
[1746704648301,10.44654461,1952.6,1952.2,5.12232109]
[1746704648466,10.44654461,1952.6,1952.4,1.73036445]
[1746704648675,10.44654461,1952.6,1952.5,0.27215496]
[1746704650698,10.44654461,1952.6,1952.5,3.27215496]
[1746704650999,10.44654461,1952.6,1952.5,0.27215496]
[1746704654908,5.1220069,1952.4,1952.2,1.73036445]
[1746704655611,5.1220069,1952.4,1952.3,3.0]
[1746704656106,5.1220069,1952.4,1952.2,1.73036445]
[1746704656305,5.1220069,1952.4,1952.3,0.27353909]
[1746704657375,5.95239538,1952.5,1952.3,0.27353909]
[1746704657712,5.12190124,1952.4,1952.3,0.27353909]
[1746704658686,5.12190124,1952.4,1952.0,12.93311612]
[1746704658886,5.12190124,1952.4,1952.1,1.56752599]
[1746704659780,5.12190124,1952.4,1952.2,1.73036445]
[1746704659987,5.95248166,1952.5,1952.2,1.73036445]
[1746704660303,5.95248166,1952.5,1952.3,0.27353909]
[1746704660678,5.12190124,1952.4,1952.3,0.27353909]
[1746704660878,5.12190124,1952.4,1952.1,2.50086445]
[1746704661105,5.95248166,1952.5,1952.2,0.27395906]
[1746704661310,5.95248166,1952.5,1952.1,8.390933]
[1746704661708,5.12178166,1952.5,1952.3,1.73036445]
[1746704661883,5.12178166,1952.5,1952.4,0.27311916]
[1746704662400,5.12191056,1952.4,1952.1,7.62347332]
[1746704662600,5.12191056,1952.4,1952.1,8.89809897]
[1746704664324,5.12191056,1952.4,1952.1,3.7754901]
[1746704665219,5.12191056,1952.4,1952.1,8.89814665]
[1746704665424,5.12182194,1952.5,1952.1,8.89814246]
[1746704665720,5.12182194,1952.5,1952.2,2.3]
[1746704666112,5.12196414,1952.4,1952.2,2.3]
[1746704666521,5.94861596,1952.5,1952.2,2.3]
[1746704666723,5.12112379,1952.7,1952.4,5.12186224]
[1746704667029,5.12106717,1952.8,1952.5,1.73036445]
[1746704667619,5.12119511,1952.7,1952.5,1.73036445]
[1746704668597,5.1208564,1952.8,1952.5,1.73036445]
[1746704668797,5.1208564,1952.8,1952.5,3.00758052]
[1746704669496,5.12088,1952.8,1952.5,8.12912044]
[1746704670531,5.12088,1952.8,1952.5,3.00758052]
[1746704671424,5.12088,1952.8,1952.6,0.2695326]
[1746704671924,10.44468166,1952.9,1952.7,2.48556445]
[1746704672092,5.324,1952.9,1952.8,0.26869335]
[1746704672725,5.12047803,1953.0,1952.8,0.26869335]
[1746704672926,5.12014108,1953.1,1952.8,0.26869335]
[1746704673723,5.12036592,1953.0,1952.8,0.26869335]
[1746704675013,5.12047272,1953.0,1952.8,0.26869335]
[1746704675320,10.24043762,1953.1,1952.8,0.26869335]
[1746704675831,5.12034812,1953.0,1952.8,0.26869335]
[1746704677703,5.12058989,1952.9,1952.8,0.26869335]
[1746704678534,5.95370073,1953.0,1952.8,0.26869335]
[1746704678825,5.12058989,1952.9,1952.8,0.26869335]
[1746704679200,5.1208744,1952.8,1952.5,7.63106964]
[1746704679401,5.1208744,1952.8,1952.5,9.81434292]
[1746704679623,5.12058989,1952.9,1952.5,9.81434292]
[1746704679823,5.12058989,1952.9,1952.5,9.86543085]
[1746704681536,5.12058989,1952.9,1952.6,3.0]
[1746704681699,5.12058989,1952.9,1952.5,9.81421994]
[1746704681901,5.12058989,1952.9,1952.5,9.86543084]
[1746704682102,5.12058989,1952.9,1952.5,14.98688316]
[1746704682303,5.12058989,1952.9,1952.5,14.93567226]
[1746704682503,5.12058989,1952.9,1952.5,9.81419005]
[1746704682699,5.12058989,1952.9,1952.5,9.86540094]
[1746704682911,5.12058989,1952.9,1952.6,5.91217547]
[1746704684445,5.12093591,1952.8,1952.6,0.7908]
[1746704684611,5.12058989,1952.9,1952.6,0.7908]
[1746704684812,5.12087144,1952.8,1952.6,0.7908]
[1746704685043,5.12087144,1952.8,1952.5,9.08647793]
[1746704685044,5.12087144,1952.8,1952.5,4.73036445]
[1746704685425,5.12087144,1952.8,1952.5,9.85192541]
[1746704685726,5.12087144,1952.8,1952.5,4.73036445]
[1746704686257,5.12087144,1952.8,1952.5,9.8519833]
[1746704686559,5.12111435,1952.7,1952.6,3.26925431]
[1746704686914,5.94081435,1952.7,1952.6,0.26925431]
[1746704687119,11.06217174,1952.7,1952.3,18.24752583]
[1746704687319,11.06217174,1952.7,1952.4,0.27009376]
[1746704687521,5.94081435,1952.7,1952.4,0.27009376]
[1746704687837,5.12141289,1952.6,1952.4,0.27009376]
[1746704688216,5.94081435,1952.7,1952.4,0.27009376]
[1746704688950,5.12143902,1952.6,1952.4,0.27009376]
[1746704689739,5.12163892,1952.5,1952.2,2.52216445]
[1746704690048,5.12163892,1952.5,1952.3,0.27027288]
[1746704690250,5.1215509,1952.6,1952.3,0.27027288]
[1746704690816,5.1205939,1952.9,1952.4,7.63687392]
[1746704691055,5.12088622,1952.8,1952.6,1.73036445]
[1746704691352,5.12088622,1952.8,1952.7,0.26851169]
[1746704691555,5.12072055,1952.9,1952.6,1.73036445]
[1746704691754,5.12072055,1952.9,1952.7,0.26867626]
[1746704692054,5.12072055,1952.9,1952.6,1.73036445]
[1746704692255,5.12072055,1952.9,1952.8,0.26825664]
[1746704692454,10.24156646,1952.9,1952.7,0.2684294]
[1746704692651,5.12072055,1952.9,1952.8,0.26817436]
[1746704693035,5.12072055,1952.9,1952.6,6.85173772]
[1746704693236,5.12072055,1952.9,1952.8,0.26817436]
[1746704693436,5.12072055,1952.9,1952.7,0.26859398]
[1746704693650,5.12072055,1952.9,1952.8,0.26817436]
[1746704694070,5.12072055,1952.9,1952.6,6.85173772]
[1746704694244,5.12072055,1952.9,1952.8,0.26817436]
[1746704694447,5.12072055,1952.9,1952.7,0.26859398]
[1746704694756,5.12072055,1952.9,1952.8,0.26817436]
[1746704694961,5.92800205,1953.0,1952.6,6.85168579]
[1746704695163,5.92800205,1953.0,1952.7,0.2684294]
[1746704695458,5.12050205,1953.0,1952.6,6.85168579]
[1746704695761,5.12050205,1953.0,1952.7,1.08114712]
[1746704698941,5.12039817,1953.0,1952.7,1.08114712]
[1746704699142,5.12067657,1952.9,1952.7,1.08114712]
[1746704699342,5.1204253,1953.0,1952.7,1.08114712]
[1746704700478,5.1204253,1953.0,1952.7,6.20223769]
[1746704700646,5.1204253,1953.0,1952.7,1.08114712]
[1746704701588,5.1204253,1953.0,1952.7,0.26834712]
[1746704701780,5.12072936,1952.9,1952.7,0.26834712]
[1746704702067,5.12072936,1952.9,1952.6,6.85172956]
[1746704702284,5.12072936,1952.9,1952.8,0.26792751]
[1746704702465,5.12072936,1952.9,1952.7,0.26834712]
[1746704702669,5.12072936,1952.9,1952.8,0.2679056]
[1746704702977,5.12050362,1953.0,1952.7,3.0]
[1746704703143,5.12050362,1953.0,1952.8,0.2679056]
[1746704703580,10.2410555,1953.0,1952.6,6.85172956]
[1746704703747,5.12050362,1953.0,1952.9,0.26748603]
[1746704703948,10.2410555,1953.0,1952.6,6.85172956]
[1746704704274,10.2410555,1953.0,1952.7,0.26832521]
[1746704704275,5.12050362,1953.0,1952.7,0.26832521]
[1746704704576,5.11991369,1953.2,1952.8,7.60208592]
[1746704704756,5.11991369,1953.2,1952.9,5.38739287]
[1746704704959,5.1203277,1953.0,1952.9,0.2668279]
[1746704705151,5.1203277,1953.0,1952.7,5.12109953]
[1746704705346,5.1203277,1953.0,1952.8,0.26732969]
[1746704706383,5.1201159,1953.1,1952.8,0.26732969]
[1746704707890,5.1201159,1953.1,1952.9,3.0]
[1746704708095,5.1201159,1953.1,1952.8,0.26732969]
[1746704708259,5.1201159,1953.1,1953.0,0.26640841]
[1746704708590,5.1201159,1953.1,1953.0,0.26657292]
[1746704708889,5.1201159,1953.1,1952.7,6.39789955]
[1746704709102,5.1201159,1953.1,1953.0,0.26649067]
[1746704709295,5.1201159,1953.1,1952.8,7.49091372]
[1746704709591,5.1201159,1953.1,1952.9,0.2668279]
[1746704710291,0.78589176,1954.6,1953.7,0.7932]
[1746704710500,0.78589176,1954.6,1954.1,1.73036445]
[1746704710657,0.78589176,1954.6,1953.8,0.2613688]
[1746704710857,5.11709417,1954.3,1954.2,0.26002171]
[1746704711163,5.93909614,1954.2,1953.7,12.94589107]
[1746704711363,5.93909614,1954.2,1953.7,15.43498886]
[1746704711786,5.93886915,1954.4,1953.9,1.73036445]
[1746704712092,5.11728699,1954.2,1953.9,1.73036445]
[1746704712292,5.11709085,1954.3,1953.9,1.73036445]
[1746704713015,10.23423389,1954.3,1954.0,3.0]
[1746704713309,5.11709085,1954.3,1954.0,3.0]
[1746704713609,5.11721762,1954.2,1954.0,3.0]
[1746704715212,5.11707858,1954.3,1954.0,3.0]
[1746704716516,5.93904674,1954.4,1954.1,1.98778291]
[1746704716720,5.1169911,1954.3,1954.1,1.98778291]
[1746704717719,5.1171835,1954.2,1954.1,1.98778291]
[1746704717918,5.1171835,1954.2,1954.1,0.25741846]
[1746704721729,8.8786835,1954.2,1953.3,8.62976445]
[1746704721890,0.7779,1953.7,1953.3,2.54976445]
[1746704722092,0.7779,1953.7,1953.4,0.26183219]
[1746704722093,5.11901714,1953.5,1953.4,0.26183219]
[1746704722402,5.11901714,1953.5,1953.4,0.38946228]
[1746704722603,5.11901714,1953.5,1953.4,0.26240795]
[1746704723016,5.89654095,1953.7,1953.3,6.84989226]
[1746704723211,5.89654095,1953.7,1953.5,1.73036445]
[1746704723629,5.89654095,1953.7,1953.6,0.26140487]
[1746704725022,5.11864095,1953.7,1953.6,0.26140487]
[1746704728013,5.1182574,1953.8,1953.3,1.73036445]
[1746704728014,5.119137,1953.5,1953.3,1.73036445]
[1746704730052,5.1192792,1953.4,1953.3,1.73036445]
[1746704730245,5.11919895,1953.5,1953.3,1.73036445]
[1746704731464,5.11919895,1953.5,1953.4,0.26346203]
[1746704731764,5.11919895,1953.5,1953.3,1.73036445]
[1746704731919,10.23844166,1953.5,1953.3,1.73036445]
[1746704732125,5.11919895,1953.5,1953.4,0.26346203]
[1746704732462,5.11954128,1953.3,1953.2,0.39096904]
[1746704732761,5.11954128,1953.3,1953.1,1.73036445]
[1746704733661,10.23930634,1953.3,1953.1,1.73036445]
[1746704733956,5.11954128,1953.3,1953.1,1.73036445]
[1746704735022,0.8276,1953.6,1953.1,1.73036445]
[1746704735223,0.8276,1953.6,1953.1,2.10666255]
[1746704735457,5.11951102,1953.4,1953.1,2.10666255]
[1746704735675,5.11956295,1953.3,1953.1,2.10666255]
[1746704736456,5.11950055,1953.4,1953.1,2.90467736]
[1746704736774,7.503,2122.3,1953.3,1.73036445]
[1746704736775,5.11914536,1953.5,1953.3,1.73036445]
[1746704737072,5.11914536,1953.5,1953.3,2.50306445]
[1746704737073,10.23838704,1953.5,1953.3,2.50306445]
[1746704737276,5.1192792,1953.4,1953.3,2.50306445]
[1746704737444,5.88649345,1953.8,1953.3,2.50306445]
[1746704737637,5.11885264,1953.6,1953.5,1.73036445]
[1746704739558,5.11885264,1953.6,1953.3,2.98072356]
[1746704739755,5.11909866,1953.5,1953.3,2.98072356]
[1746704740377,10.2378577,1953.6,1953.3,2.98072356]
[1746704740578,5.11885264,1953.6,1953.3,2.98072356]
[1746704740881,5.11902961,1953.5,1953.3,2.98072356]
[1746704741879,5.11902961,1953.5,1953.3,2.50306445]
[1746704742365,5.11902961,1953.5,1953.3,1.73036445]
[1746704745451,0.7961,1953.6,1953.1,2.90467736]
[1746704745647,5.11938873,1953.4,1953.1,2.90467736]
[1746704746455,5.11938873,1953.4,1953.2,0.26454119]
[1746704746782,5.11938873,1953.4,1953.1,3.3829286]
[1746704746968,5.11938873,1953.4,1953.2,0.26454119]
[1746704747170,5.11938873,1953.4,1953.1,3.3829286]
[1746704747340,5.11938873,1953.4,1953.2,0.26454119]
[1746704747675,5.11938873,1953.4,1953.1,3.3829286]
[1746704747882,5.11938873,1953.4,1953.3,0.2641218]
[1746704748039,5.11938873,1953.4,1953.2,1.08108529]
[1746704748239,5.11938873,1953.4,1953.3,0.2641218]
[1746704748476,5.11920338,1953.5,1953.3,0.2641218]
[1746704748678,5.11920338,1953.5,1953.3,2.78888625]
[1746704748868,5.11875726,1953.6,1953.3,3.66140915]
[1746704749071,10.23772802,1953.6,1953.3,3.66140915]
[1746704749257,5.11875726,1953.6,1953.3,3.66140915]
[1746704749677,5.11875726,1953.6,1953.4,0.47878668]
[1746704749974,5.11875726,1953.6,1953.5,0.26328314]
[1746704751148,5.11905231,1953.5,1953.3,2.52476445]
[1746704751346,5.11905231,1953.5,1953.4,0.26370245]
[1746704751547,5.11905231,1953.5,1953.3,3.32305004]
[1746704751770,5.11905231,1953.5,1953.4,0.26370245]
[1746704752078,5.11875726,1953.6,1953.3,2.52476445]
[1746704752371,5.11875726,1953.6,1953.4,0.26370245]
[1746704752543,5.11875726,1953.6,1953.3,2.52476445]
[1746704752744,5.11903307,1953.5,1953.4,0.26370245]
[1746704753044,5.1189403,1953.6,1953.4,0.47946183]
[1746704753273,10.23794768,1953.6,1953.4,0.74316428]
[1746704753467,5.11901714,1953.5,1953.4,0.74316428]
[1746704753664,5.11901714,1953.5,1953.4,0.26370245]
[1746704754378,5.11901714,1953.5,1953.4,0.47947662]
[1746704754557,5.11901714,1953.5,1953.4,0.74317907]
[1746704754753,5.90321714,1953.5,1953.4,0.74317907]
[1746704755767,5.90321714,1953.5,1953.4,0.26370245]
[1746704756079,5.11928239,1953.4,1953.2,0.47947662]
[1746704756579,5.11954128,1953.3,1953.2,0.47947662]
[1746704756970,5.1194385,1953.4,1953.2,0.47947662]
[1746704757158,5.1194385,1953.4,1953.1,2.87716255]
[1746704757562,5.1194385,1953.4,1953.1,3.6768913]
[1746704760087,5.1194385,1953.4,1953.1,8.79694769]
[1746704761193,5.1194385,1953.4,1953.2,0.26482021]
[1746704761359,5.12058989,1952.9,1952.8,1.73036445]
[1746704761561,5.1208521,1952.8,1952.7,1.15391712]
[1746704761760,5.1206042,1952.9,1952.7,0.38781712]
[1746704762090,5.1206042,1952.9,1952.6,1.73036445]
[1746704762394,10.24142589,1952.9,1952.6,3.10016602]
[1746704762580,5.1206042,1952.9,1952.6,3.10016602]
[1746704762779,5.12110184,1952.8,1952.6,3.10016602]
[1746704762978,5.12111435,1952.7,1952.6,3.10016602]
[1746704763293,5.12103852,1952.8,1952.6,3.10016602]
[1746704764775,5.1206942,1952.9,1952.6,3.48625473]
[1746704765112,5.1206942,1952.9,1952.8,1.73036445]
[1746704765290,5.1206942,1952.9,1952.6,2.11645316]
[1746704765488,5.1206942,1952.9,1952.6,1.73036445]
[1746704766210,5.12088675,1952.8,1952.6,1.73036445]
[1746704766381,5.1206942,1952.9,1952.4,1.73036445]
[1746704766382,5.12149216,1952.6,1952.4,1.73036445]
[1746704766579,5.12096714,1952.8,1952.4,7.40646894]
[1746704766777,5.12096714,1952.8,1952.6,1.73036445]
[1746704769368,5.12111435,1952.7,1952.6,1.73036445]
[1746704769573,5.12152982,1952.6,1952.4,2.2846809]
[1746704769906,5.12163892,1952.5,1952.4,2.2846809]
[1746704770101,5.12163892,1952.5,1952.4,1.73036445]
[1746704770812,5.12152982,1952.6,1952.4,1.73036445]
[1746704771707,5.12163892,1952.5,1952.4,1.73036445]
[1746704773720,5.12138067,1952.6,1952.4,1.73036445]
[1746704773915,5.12119352,1952.7,1952.4,1.73036445]
[1746704774611,5.9123772,1952.6,1952.3,0.38641532]
[1746704774815,5.9123772,1952.6,1952.2,1.73036445]
[1746704774816,5.12189371,1952.5,1952.2,1.73036445]
[1746704775037,5.12189371,1952.5,1952.2,3.10255026]
[1746704776044,5.12189371,1952.5,1952.4,1.73036445]
[1746704776346,5.12189371,1952.5,1952.4,2.00260179]
[1746704778854,11.03398514,1952.6,1952.4,2.00260179]
[1746704779563,5.91239438,1952.6,1952.4,2.00260179]
[1746704779843,5.12100117,1952.8,1952.4,7.92283699]
[1746704780043,10.24211326,1952.8,1952.4,9.27072073]
[1746704780248,5.12100117,1952.8,1952.6,1.73036445]
[1746704780438,5.12100117,1952.8,1952.7,0.27089556]
[1746704780610,5.12100117,1952.8,1952.6,1.73036445]
[1746704780813,5.12100117,1952.8,1952.7,0.27081322]
[1746704781015,5.12100117,1952.8,1952.6,1.73036445]
[1746704781317,5.12100117,1952.8,1952.7,0.27040156]
[1746704781649,5.12100117,1952.8,1952.6,1.73036445]
[1746704781945,5.12100117,1952.8,1952.7,0.27040156]
[1746704782247,5.94738067,1952.9,1952.6,1.73036445]
[1746704782547,5.1209345,1952.8,1952.7,0.27009523]
[1746704782849,5.1209345,1952.8,1952.6,1.73036445]
[1746704783150,5.1209345,1952.8,1952.7,0.27034222]
[1746704783555,5.1209345,1952.8,1952.6,1.73036445]
[1746704783850,5.1208521,1952.8,1952.7,0.27058923]
[1746704784051,5.1208521,1952.8,1952.6,1.73036445]
[1746704784259,5.1208521,1952.8,1952.7,0.27058923]
[1746704784462,5.1208521,1952.8,1952.6,1.73036445]
[1746704784662,5.1208521,1952.8,1952.7,0.27050689]
[1746704785018,5.1208521,1952.8,1952.6,1.73036445]
[1746704785218,5.1208521,1952.8,1952.7,0.27009523]
[1746704785442,5.1208521,1952.8,1952.6,1.73036445]
[1746704785647,5.1208521,1952.8,1952.7,0.27067156]
[1746704785833,5.1208521,1952.8,1952.6,2.41556105]
[1746704786034,5.12075462,1952.9,1952.7,0.27058923]
[1746704786229,5.12044135,1953.0,1952.6,2.41556105]
[1746704786230,5.12044135,1953.0,1952.6,2.4667721]
[1746704786533,5.12044135,1953.0,1952.7,1.05824826]
[1746704788637,5.1203277,1953.0,1952.7,1.05824826]
[1746704790537,25.2919332,1953.7,1953.0,5.93538869]
[1746704790538,5.11947596,1953.4,1953.0,5.93538869]
[1746704790873,5.11947596,1953.4,1953.1,0.26561902]
[1746704790874,5.11944783,1953.4,1953.1,0.26561902]
[1746704791166,5.11916322,1953.5,1953.2,1.73036445]
[1746704791384,5.11889957,1953.6,1953.3,0.796]
[1746704791549,10.23735986,1953.7,1953.3,6.18077917]
[1746704791935,5.11864615,1953.7,1953.3,6.18077917]
[1746704792140,5.11864615,1953.7,1953.3,7.48387223]
[1746704792649,5.11837585,1953.8,1953.3,2.36436693]
[1746704792868,5.11788416,1954.0,1953.6,6.84891108]
[1746704793195,5.11788416,1954.0,1953.6,6.90009195]
[1746704793353,5.11788416,1954.0,1953.7,0.26285666]
[1746704793740,5.11788416,1954.0,1953.6,6.90009195]
[1746704793976,5.11788416,1954.0,1953.8,0.26243754]
[1746704794174,5.11788416,1954.0,1953.7,1.33215164]
[1746704794352,0.7932,1954.4,1953.9,0.26201847]
[1746704794545,5.11703031,1954.3,1953.9,5.11794092]
[1746704794745,5.11719537,1954.2,1954.0,0.26159945]
[1746704795251,5.90998827,1954.4,1954.1,0.26118046]
[1746704795252,5.11678827,1954.4,1954.1,0.26118046]
[1746704795454,5.11984046,1954.6,1954.2,7.6307887]
[1746704795655,5.11984046,1954.6,1954.3,1.02350371]
[1746704796674,5.11653623,1954.5,1954.3,1.02350371]
[1746704796875,5.11984351,1954.6,1954.3,0.26042484]
[1746704797075,0.00359176,1954.6,1954.4,6.89804411]
[1746704797574,0.00359176,1954.6,1954.5,6.17315392]
[1746704797776,0.00359176,1954.6,1954.5,1.05675587]
[1746704797976,0.00359176,1954.6,1954.5,0.25645587]
[1746704798954,0.00359176,1954.6,1954.5,9.14845392]
[1746704799291,0.00359176,1954.6,1954.5,9.14828951]
[1746704800379,0.00359176,1954.6,1954.5,4.03189146]
[1746704800583,0.00359176,1954.6,1954.5,9.19944562]
[1746704802083,0.00359176,1954.6,1954.5,9.14828951]
[1746704802280,0.00359176,1954.6,1954.5,1.03189146]
[1746704802692,0.00359176,1954.6,1954.5,0.25629146]
[1746704803190,0.00359176,1954.6,1954.3,13.70556485]
[1746704803356,0.00359176,1954.6,1954.5,0.2567847]
[1746704803556,0.00359176,1954.6,1954.4,0.25720354]
[1746704803767,0.00359176,1954.6,1954.5,0.2567847]
[1746704803970,0.00359176,1954.6,1954.3,7.62556485]
[1746704804172,0.00359176,1954.6,1954.4,0.30836458]
[1746704805497,5.11975967,1954.6,1954.4,0.30836458]
[1746704805703,0.00359176,1954.6,1954.4,0.30836481]
[1746704806372,0.00359176,1954.6,1954.4,5.4249938]
[1746704806566,0.00359176,1954.6,1954.4,0.30836481]
[1746704806905,0.00359176,1954.6,1954.4,1.31998617]
[1746704807283,0.00359176,1954.6,1954.4,1.2688249]
[1746704808398,0.00359176,1954.6,1954.4,1.31998596]
[1746704808566,0.00359176,1954.6,1954.4,6.43663929]
[1746704808767,0.00359176,1954.6,1954.4,1.31998596]
[1746704809577,0.00359176,1954.6,1954.4,0.25720354]
[1746704809578,5.11639805,1954.5,1954.4,0.25720354]
[1746704809763,5.11639805,1954.5,1954.2,9.08]
[1746704809966,5.11639805,1954.5,1954.2,3.0]
[1746704810296,5.9095479,1954.6,1954.3,0.25770464]
[1746704810594,5.11657004,1954.5,1954.3,0.25770464]
[1746704810800,0.79329176,1954.6,1954.3,0.25770464]
[1746704810973,5.11648063,1954.5,1954.3,0.25770464]
[1746704811584,0.00359176,1954.6,1954.4,0.7826]
[1746704811890,0.00359176,1954.6,1954.5,0.25826478]
[1746704812974,5.11972805,1954.6,1954.5,0.25826478]
[1746704813171,5.87662805,1954.6,1954.5,0.25826478]
[1746704813495,5.11674657,1954.4,1954.1,7.01836445]
[1746704813697,5.11674657,1954.4,1954.1,13.42743622]
[1746704813885,5.11654956,1954.5,1954.1,18.54472799]
[1746704814092,5.11654956,1954.5,1954.1,13.4272878]
[1746704814770,5.11654956,1954.5,1954.1,13.4272717]
[1746704815199,0.00359176,1954.6,1954.3,1.73036445]
[1746704815390,0.00359176,1954.6,1954.3,7.60964299]
[1746704816080,5.11974799,1954.6,1954.3,7.60964299]
[1746704816275,0.00359176,1954.6,1954.4,0.8112]
[1746704816501,5.11986528,1954.6,1954.4,0.8112]
[1746704816700,0.00359176,1954.6,1954.4,0.8112]
[1746704817583,0.00359176,1954.6,1954.5,3.0]
[1746704819507,5.11972805,1954.6,1954.5,3.0]
[1746704820799,0.00359176,1954.6,1954.5,3.0]
[1746704821405,0.00359176,1954.6,1954.5,3.25864668]
[1746704821605,5.11972805,1954.6,1954.5,3.25864668]
[1746704822487,0.00359176,1954.6,1954.5,3.25864668]
[1746704826497,0.00359176,1954.6,1954.5,11.70853812]
[1746704828812,0.00359176,1954.6,1954.5,1.09617562]
[1746704829017,0.00359176,1954.6,1954.5,0.25864668]
[1746704830019,0.00359176,1954.6,1954.3,7.60833368]
[1746704830202,0.00359176,1954.6,1954.5,0.25945387]
[1746704830404,0.00359176,1954.6,1954.2,14.19704256]
[1746704830405,5.11984373,1954.6,1954.4,0.2598729]
[1746704830717,0.79519176,1954.6,1954.5,0.25945387]
[1746704831013,0.79519176,1954.6,1954.2,5.11701621]
[1746704831014,5.91132805,1954.6,1954.2,5.11701621]
[1746704831213,0.79519176,1954.6,1954.3,5.11691742]
[1746704831419,0.79519176,1954.6,1954.3,5.37704483]
[1746704832017,0.00359176,1954.6,1954.4,5.11663556]
[1746704832386,0.00359176,1954.6,1954.5,0.2593716]
[1746704832906,0.00359176,1954.6,1954.5,7.1061341]
[1746704833118,0.00359176,1954.6,1954.5,8.32839509]
[1746704833528,0.00359176,1954.6,1954.5,1.98973605]
[1746704833699,0.00359176,1954.6,1954.5,7.1061341]
[1746704834612,0.00359176,1954.6,1954.5,7.15729357]
[1746704835041,0.00359176,1954.6,1954.5,7.1061341]
[1746704835335,0.00359176,1954.6,1954.5,10.15728841]
[1746704835632,0.00359176,1954.6,1954.5,11.76606484]
[1746704835831,0.00359176,1954.6,1954.5,12.50711053]
[1746704835994,0.00359176,1954.6,1954.5,4.86814803]
[1746704836194,0.00359176,1954.6,1954.5,0.2593716]
[1746704836633,0.00359176,1954.6,1954.3,7.6393]
[1746704836810,5.1197866,1954.6,1954.4,0.25950519]
[1746704837008,5.8773866,1954.6,1954.2,18.03827655]
[1746704837212,5.8773866,1954.6,1954.3,0.26000652]
[1746704837628,5.8773866,1954.6,1954.3,5.37691536]
[1746704837836,0.76119176,1954.6,1954.3,8.98826228]
[1746704838037,5.87735211,1954.6,1954.3,8.98826228]